fUST/lending_fUST_20260104
["ID","MTS","AMOUNT","RATE_DAILY","PERIOD"]
[400423150,1767537004122,-203.56335791,9.995e-05,2]
[400423151,1767537005670,-255.08551362,9.995e-05,2]
[400423152,1767537007192,-515.45466548,9.995e-05,2]
[400423153,1767537009758,-544.06,9.995e-05,2]
[400423154,1767537011272,-1198.69838424,9.995e-05,2]
[400423155,1767537012144,203.56335791,9.995e-05,2]
[400423156,1767537014673,-180.71406105,9.995e-05,2]
[400423157,1767537016246,-177.7,9.995e-05,2]
[400423158,1767537018779,-243.28702116,9.995e-05,2]
[400423159,1767537021313,-151.79753616,9.995e-05,2]
[400423160,1767537022649,-193.58627689,9.995e-05,2]
[400423161,1767537025323,-319.49131589,9.995e-05,2]
[400423162,1767537027308,-1128.99157784,9.995e-05,2]
[400423163,1767537029340,-259.21478696,9.995e-05,2]
[400423165,1767537030821,-471.14747377,9.995e-05,2]
[400423179,1767537031785,-3621.50184145,9.995e-05,2]
[400423181,1767537031842,-905.22998422,9.995e-05,2]
[400423182,1767537031854,-465.60265351,9.995e-05,2]
[400423183,1767537031866,-89315.30430682,9.995e-05,2]
[400423198,1767537032734,-288.7428616,9.995e-05,2]
[400423199,1767537034755,-255.36630475,9.995e-05,2]
[400423203,1767537037713,-211.95799355,9.995e-05,2]
[400423205,1767537038019,-3065.74439699,9.995e-05,2]
[400423206,1767537038078,-870471.3472141,9.995e-05,2]
[400423207,1767537038088,-371.80189704,9.997e-05,2]
[400423208,1767537038097,-510.34,0.0001,2]
[400423209,1767537038107,-510.34,0.000102,2]
[400423210,1767537038116,-1825.54736579,0.00010285,2]
[400423211,1767537038126,-50000.0,0.00010297,2]
[400423212,1767537038136,-300.0,0.00010297,2]
[400423213,1767537038145,-300.0,0.00010297,2]
[400423214,1767537038156,-300.0,0.00010297,2]
[400423215,1767537038166,-300.0,0.00010297,2]
[400423216,1767537038175,-300.0,0.00010297,2]
[400423217,1767537038186,-300.0,0.00010297,2]
[400423219,1767537038195,-300.0,0.00010297,2]
[400423221,1767537038204,-300.0,0.00010297,2]
[400423224,1767537038214,-300.0,0.00010297,2]
[400423227,1767537038223,-300.0,0.00010297,2]
[400423229,1767537038233,-300.0,0.00010297,2]
[400423231,1767537038244,-300.0,0.00010297,2]
[400423233,1767537038253,-300.0,0.00010297,2]
[400423235,1767537038263,-300.0,0.00010297,2]
[400423237,1767537038272,-300.0,0.00010297,2]
[400423239,1767537038282,-600.0,0.00010297,2]
[400423241,1767537038292,-510.34,0.000104,2]
[400423243,1767537038301,-510.34,0.000106,2]
[400423244,1767537038311,-8712.6185926,0.00010728,2]
[400423245,1767537038320,-510.34,0.000108,2]
[400423246,1767537038330,-300.0,0.00010892,2]
[400423247,1767537038340,-999.0,0.00010959,2]
[400423248,1767537038351,-500.0,0.00010959,2]
[400423249,1767537038361,-500.0,0.00010959,2]
[400423250,1767537038370,-165.54908969,0.00010959,2]
[400423251,1767537038379,-500.0,0.00010959,2]
[400423252,1767537038389,-500.0,0.00010959,2]
[400423253,1767537038399,-510.34,0.00011,2]
[400423254,1767537038409,-253.46954098,0.00011142,2]
[400423255,1767537038418,-200.0,0.00011167,10]
[400423256,1767537038428,-720.0,0.00011326,2]
[400423257,1767537038439,-3501.09473158,0.00011451,2]
[400423258,1767537038448,-438.7262385,0.00011997,2]
[400423259,1767537038458,-250.0,0.00012073,2]
[400423260,1767537038467,-250.0,0.00012073,2]
[400423261,1767537038477,-250.0,0.00012073,2]
[400423262,1767537038487,-250.0,0.00012073,2]
[400423263,1767537038496,-250.0,0.00012073,2]
[400423264,1767537038505,-553.64373807,0.00012073,2]
[400423265,1767537038515,-250.0,0.00012073,2]
[400423266,1767537038524,-250.0,0.00012073,2]
[400423267,1767537038535,-250.0,0.00012073,2]
[400423268,1767537038544,-250.0,0.00012073,2]
[400423269,1767537038553,-250.0,0.00012073,2]
[400423270,1767537038563,-250.0,0.00012073,2]
[400423271,1767537038574,-250.0,0.00012073,2]
[400423272,1767537038587,-812.93,0.00012329,2]
[400423273,1767537038596,-872.74,0.00012329,2]
[400423274,1767537038606,-864.0,0.00012459,2]
[400423275,1767537038615,-500.0,0.00012526,2]
[400423276,1767537038626,-574.12855637,0.00012621,2]
[400423277,1767537038636,-500.0,0.00012663,2]
[400423278,1767537038645,-355.61506117,0.000128,2]
[400423279,1767537038654,-211.89263414,0.00012953,2]
[400423280,1767537038666,-7137.10260308,0.00013,2]
[400423281,1767537038675,-5603.21446565,0.00013078,2]
[400423282,1767537038685,-153.84151718,0.00013104,2]
[400423283,1767537038695,-595.37131296,0.00013169,2]
[400423284,1767537038705,-225.15985308,0.00013211,2]
[400423285,1767537038715,-1041.66666667,0.00013242,2]
[400423286,1767537038724,-500.0,0.00013273,2]
[400423287,1767537038734,-520.29648728,0.00013273,2]
[400423288,1767537038744,-500.33450546,0.00013273,2]
[400423289,1767537038753,-500.0,0.00013273,2]
[400423290,1767537038763,-500.0,0.00013273,2]
[400423291,1767537038772,-500.0,0.00013273,2]
[400423292,1767537038781,-500.0,0.00013273,2]
[400423293,1767537038791,-500.0,0.00013273,2]
[400423294,1767537038801,-500.0,0.00013273,2]
[400423295,1767537038811,-500.0,0.00013273,2]
[400423296,1767537038820,-500.0,0.00013273,2]
[400423297,1767537038830,-500.0,0.00013273,2]
[400423298,1767537038840,-500.0,0.00013273,2]
[400423299,1767537038850,-530.08399995,0.00013273,2]
[400423300,1767537038860,-500.0,0.00013273,2]
[400423301,1767537038870,-500.0,0.00013273,2]
[400423302,1767537038880,-500.0,0.00013273,2]
[400423303,1767537038890,-500.0,0.00013273,2]
[400423304,1767537038899,-500.0,0.00013273,2]
[400423305,1767537038909,-500.0,0.00013273,2]
[400423306,1767537038918,-500.0,0.00013273,2]
[400423307,1767537038928,-500.0,0.00013273,2]
[400423308,1767537038937,-500.0,0.00013273,2]
[400423309,1767537038947,-500.0,0.00013273,2]
[400423310,1767537038956,-500.0,0.00013273,2]
[400423311,1767537038966,-500.0,0.00013273,2]
[400423312,1767537038975,-500.0,0.00013273,2]
[400423313,1767537038985,-500.39596396,0.00013273,2]
[400423314,1767537038995,-500.0,0.00013273,2]
[400423315,1767537039004,-500.0,0.00013273,2]
[400423316,1767537039014,-500.0,0.00013273,2]
[400423317,1767537039024,-500.0,0.00013273,2]
[400423318,1767537039034,-159.29284371,0.00013273,2]
[400423319,1767537039044,-500.0,0.00013273,2]
[400423320,1767537039054,-494.22531754,0.00013273,2]
[400423321,1767537039063,-500.0,0.00013273,2]
[400423322,1767537039071,-500.0,0.00013273,2]
[400423323,1767537039081,-500.87675114,0.00013273,2]
[400423324,1767537039090,-500.0,0.00013273,2]
[400423325,1767537039100,-500.0,0.00013273,2]
[400423326,1767537039110,-500.78161845,0.00013273,2]
[400423327,1767537039120,-500.0,0.00013273,2]
[400423328,1767537039130,-500.0,0.00013273,2]
[400423329,1767537039139,-500.0,0.00013273,2]
[400423330,1767537039149,-500.0,0.00013273,2]
[400423331,1767537039159,-500.66535863,0.00013273,2]
[400423332,1767537039168,-500.0,0.00013273,2]
[400423333,1767537039178,-500.0,0.00013273,2]
[400423334,1767537039188,-500.0,0.00013273,2]
[400423335,1767537039198,-500.0,0.00013273,2]
[400423336,1767537039208,-500.0,0.00013273,2]
[400423337,1767537039218,-205.55096652,0.00013273,2]
[400423338,1767537039228,-500.32554023,0.00013273,2]
[400423339,1767537039238,-500.0,0.00013273,2]
[400423340,1767537039248,-10000.0,0.0001354,2]
[400423341,1767537039258,-156.04,0.00013622,2]
[400423342,1767537039268,-300.0,0.00013673,2]
[400423343,1767537039278,-500.0,0.00013698,2]
[400423344,1767537039288,-500.0,0.00013698,2]
[400423345,1767537039298,-500.0,0.00013698,2]
[400423346,1767537039307,-500.0,0.00013698,2]
[400423347,1767537039318,-500.0,0.00013698,2]
[400423348,1767537039327,-500.0,0.00013698,2]
[400423349,1767537039337,-500.0,0.00013698,2]
[400423350,1767537039347,-252.42483345,0.00013698,2]
[400423351,1767537039357,-500.0,0.00013698,2]
[400423352,1767537039366,-500.0,0.00013698,2]
[400423353,1767537039376,-241.78088945,0.00013698,2]
[400423354,1767537039386,-463.44106234,0.00013698,2]
[400423355,1767537039396,-513.04283332,0.00013698,2]
[400423356,1767537039406,-500.0,0.00013698,2]
[400423357,1767537039417,-500.0,0.00013698,2]
[400423358,1767537039426,-500.0,0.00013698,2]
[400423359,1767537039436,-500.0,0.00013698,2]
[400423360,1767537039446,-500.0,0.00013698,2]
[400423361,1767537039455,-500.0,0.00013698,2]
[400423363,1767537039465,-500.0,0.00013698,2]
[400423365,1767537039475,-500.0,0.00013698,2]
[400423367,1767537039485,-500.0,0.00013698,2]
[400423369,1767537039494,-500.0,0.00013698,2]
[400423370,1767537039504,-500.0,0.00013698,2]
[400423371,1767537039513,-500.0,0.00013698,2]
[400423372,1767537039523,-276.53041687,0.00013698,2]
[400423373,1767537039533,-500.0,0.00013698,2]
[400423374,1767537039543,-500.0,0.00013698,2]
[400423375,1767537039553,-500.0,0.00013698,2]
[400423376,1767537039562,-500.0,0.00013698,2]
[400423377,1767537039572,-525.39041096,0.00013698,2]
[400423378,1767537039583,-466.89772029,0.00013698,2]
[400423379,1767537039593,-1000.0,0.00013698,2]
[400423380,1767537039603,-1000.0,0.00013698,2]
[400423381,1767537039613,-1000.0,0.00013698,2]
[400423382,1767537039624,-1000.0,0.00013698,2]
[400423383,1767537039633,-1000.0,0.00013698,2]
[400423384,1767537039643,-1000.0,0.00013698,2]
[400423385,1767537039653,-1000.0,0.00013698,2]
[400423387,1767537039663,-1013.52750033,0.00013698,2]
[400423388,1767537039672,-500.0,0.00013698,2]
[400423389,1767537039682,-500.0,0.00013698,2]
[400423390,1767537039691,-500.0,0.00013698,2]
[400423391,1767537039702,-500.0,0.00013698,2]
[400423392,1767537039711,-500.0,0.00013698,2]
[400423393,1767537039722,-277.25170511,0.00013698,2]
[400423394,1767537039732,-1000.0,0.00013699,2]
[400423395,1767537039742,-1051.987599,0.00013699,2]
[400423396,1767537039752,-1811.906025,0.00013699,2]
[400423397,1767537039762,-504.37236451,0.00013699,2]
[400423398,1767537039773,-500.0,0.00013699,2]
[400423399,1767537039782,-501.57510488,0.00013699,2]
[400423400,1767537039792,-500.59370123,0.00013699,2]
[400423401,1767537039802,-500.68695717,0.00013699,2]
[400423402,1767537039812,-501.13869568,0.00013699,2]
[400423403,1767537039822,-500.54648237,0.00013699,2]
[400423404,1767537039831,-500.0,0.00013699,2]
[400423405,1767537039842,-500.65442518,0.00013699,2]
[400423406,1767537039852,-501.64231058,0.00013699,2]
[400423407,1767537039861,-565.84046336,0.00013699,2]
[400423408,1767537039872,-500.86295152,0.00013699,2]
[400423409,1767537039882,-501.07709958,0.00013699,2]
[400423410,1767537039892,-501.04423764,0.00013699,2]
[400423411,1767537039901,-500.85765138,0.00013699,2]
[400423412,1767537039911,-500.71714379,0.00013699,2]
[400423413,1767537039921,-500.0,0.00013699,2]
[400423414,1767537039930,-500.92020919,0.00013699,2]
[400423415,1767537039940,-500.86924755,0.00013699,2]
[400423416,1767537039949,-501.56829016,0.00013699,2]
[400423417,1767537039959,-500.0,0.00013699,2]
[400423418,1767537039968,-500.6911085,0.00013699,2]
[400423419,1767537039979,-500.0,0.00013699,2]
[400423420,1767537039988,-500.0,0.00013699,2]
[400423421,1767537039998,-500.60483179,0.00013699,2]
[400423423,1767537040007,-500.65045485,0.00013699,2]
[400423424,1767537040017,-540.86402726,0.00013699,2]
[400423425,1767537040027,-500.7233053,0.00013699,2]
[400423426,1767537040037,-500.84600982,0.00013699,2]
[400423427,1767537040047,-500.0,0.00013699,2]
[400423428,1767537040056,-526.06901587,0.00013699,2]
[400423429,1767537040066,-500.93963039,0.00013699,2]
[400423431,1767537040075,-500.2666594,0.00013699,2]
[400423432,1767537040084,-500.70390691,0.00013699,2]
[400423434,1767537040094,-500.0,0.00013699,2]
[400423436,1767537040103,-500.63204619,0.00013699,2]
[400423438,1767537040113,-501.17135178,0.00013699,2]
[400423440,1767537040122,-500.76143899,0.00013699,2]
[400423442,1767537040132,-500.0,0.00013699,2]
[400423444,1767537040142,-500.0,0.00013699,2]
[400423446,1767537040152,-500.0,0.00013699,2]
[400423449,1767537040162,-500.8659362,0.00013699,2]
[400423450,1767537040172,-2000.0,0.00013699,7]
[400423452,1767537040181,-500.73320513,0.00013699,2]
[400423454,1767537040191,-500.73288358,0.00013699,2]
[400423456,1767537040200,-500.76727011,0.00013699,2]
[400423458,1767537040211,-501.23587401,0.00013699,2]
[400423460,1767537040221,-500.0,0.00013699,2]
[400423462,1767537040230,-500.68900305,0.00013699,2]
[400423464,1767537040240,-501.19127842,0.00013699,2]
[400423466,1767537040250,-502.04480355,0.00013699,2]
[400423468,1767537040260,-254.18853098,0.00013699,2]
[400423470,1767537040269,-500.0,0.00013699,2]
[400423472,1767537040279,-500.0,0.00013699,2]
[400423474,1767537040289,-343.49392703,0.00013699,2]
[400423476,1767537040299,-500.0,0.00013699,2]
[400423478,1767537040309,-500.61401424,0.00013699,2]
[400423480,1767537040318,-500.0,0.00013699,2]
[400423482,1767537040328,-1000.0,0.00013705,2]
[400423484,1767537040338,-617.40005154,0.00013717,2]
[400423486,1767537040348,-1006.40151695,0.00013821,2]
[400423488,1767537040356,-160.8561298,0.00013821,2]
[400423490,1767537040366,-1000.68502209,0.00013821,2]
[400423492,1767537040376,-1000.0,0.00013821,2]
[400423494,1767537040385,-1000.55162426,0.00013821,2]
[400423496,1767537040395,-559.85540767,0.00013821,2]
[400423498,1767537040404,-1000.0,0.00013821,2]
[400423500,1767537040413,-1000.77344969,0.00013821,2]
[400423502,1767537040423,-1001.10079319,0.00013821,2]
[400423504,1767537040432,-500.89687559,0.00013821,2]
[400423505,1767537040442,-1000.0,0.00013821,2]
[400423507,1767537040452,-1000.0,0.00013821,2]
[400423508,1767537040462,-1000.0,0.00013821,2]
[400423510,1767537040471,-1000.0,0.00013821,2]
[400423512,1767537040481,-1000.0,0.00013821,2]
[400423514,1767537040491,-1000.0,0.00013821,2]
[400423516,1767537040500,-1000.0,0.00013821,2]
[400423518,1767537040510,-1000.0,0.00013821,2]
[400423520,1767537040520,-1000.0,0.00013821,2]
[400423522,1767537040530,-500.54385741,0.00013821,2]
[400423524,1767537040540,-177.31363465,0.00013821,2]
[400423526,1767537040550,-500.0,0.00013821,2]
[400423528,1767537040560,-500.0,0.00013821,2]
[400423530,1767537040569,-500.41510644,0.00013821,2]
[400423532,1767537040582,-902.33846508,0.00013821,2]
[400423534,1767537040595,-500.0,0.00013821,2]
[400423536,1767537040604,-500.0,0.00013821,2]
[400423538,1767537040613,-500.86705355,0.00013821,2]
[400423540,1767537040622,-1000.0,0.00013821,2]
[400423542,1767537040633,-500.0,0.00013821,2]
[400423544,1767537040643,-1000.91624056,0.00013821,2]
[400423546,1767537040652,-500.0,0.00013821,2]
[400423548,1767537040665,-460.22217308,0.00013821,2]
[400423550,1767537040675,-500.26789632,0.00013821,2]
[400423552,1767537040684,-503.24529155,0.00013821,2]
[400423554,1767537040693,-500.40232212,0.00013821,2]
[400423556,1767537040703,-500.78852788,0.00013821,2]
[400423558,1767537040712,-500.43463828,0.00013821,2]
[400423560,1767537040722,-1062.49024753,0.00013821,2]
[400423562,1767537040731,-1006.66491172,0.00013821,2]
[400423564,1767537040741,-500.0,0.00013821,2]
[400423566,1767537040750,-500.52724424,0.00013821,2]
[400423568,1767537040760,-1000.0,0.00013821,2]
[400423569,1767537040769,-505.65057997,0.00013997,2]
[400423571,1767537040779,-600.0,0.00014221,2]
[400423574,1767537040789,-1000.0,0.00014247,2]
[400423576,1767537040799,-1000.0,0.00014247,2]
[400423578,1767537040808,-1000.0,0.00014247,2]
[400423579,1767537040818,-1000.0,0.00014247,2]
[400423581,1767537040827,-1000.0,0.00014247,2]
[400423583,1767537040837,-1000.0,0.00014247,2]
[400423585,1767537040847,-500.0,0.00014247,2]
[400423586,1767537040856,-1000.0,0.00014247,2]
[400423587,1767537040865,-640.24385345,0.00014265,2]
[400423588,1767537040874,-6852.18946316,0.00014354,2]
[400423589,1767537040883,-500.0,0.00014368,2]
[400423590,1767537040893,-500.0,0.00014368,2]
[400423591,1767537040902,-478.35295088,0.00014368,2]
[400423592,1767537040911,-1500.0,0.00014368,2]
[400423593,1767537040920,-281.48137907,0.00014368,2]
[400423594,1767537040928,-500.0,0.00014368,2]
[400423595,1767537040938,-1500.0,0.00014368,2]
[400423596,1767537040947,-1354.76768455,0.00014368,2]
[400423597,1767537040957,-1500.0,0.00014368,2]
[400423598,1767537040966,-500.0,0.00014368,2]
[400423599,1767537040975,-423.32811707,0.00014368,2]
[400423600,1767537040985,-1500.0,0.00014368,2]
[400423601,1767537040995,-1500.0,0.00014368,2]
[400423602,1767537041004,-2000.0,0.00014514,7]
[400423603,1767537041014,-900.0,0.00014768,2]
[400423604,1767537041024,-167.99783089,0.00014795,2]
[400423605,1767537041034,-501.5287654,0.00014795,2]
[400423606,1767537041043,-1500.0,0.00014795,2]
[400423607,1767537041053,-1500.0,0.00014795,2]
[400423608,1767537041062,-1500.0,0.00014795,2]
[400423609,1767537041070,-1500.0,0.00014795,2]
[400423610,1767537041079,-1500.0,0.00014795,2]
[400423612,1767537041089,-663.93287602,0.00014813,2]
[400423614,1767537041098,-1000.0,0.00014916,2]
[400423616,1767537041108,-2000.0,0.00014916,2]
[400423618,1767537041118,-1598.44792801,0.00014916,2]
[400423620,1767537041127,-2000.0,0.00014916,2]
[400423622,1767537041136,-2000.0,0.00014916,2]
[400423643,1767537041146,-175.717707,0.00015068,2]
[400423646,1767537041354,-1000.0,0.00015076,2]
[400423648,1767537041365,-244.0,0.00015076,2]
[400423650,1767537041375,-1200.0,0.00015316,2]
[400423652,1767537041385,-2000.0,0.00015329,7]
[400423654,1767537041395,-687.88444633,0.00015342,2]
[400423656,1767537041404,-1558.12211568,0.00015342,2]
[400423658,1767537041414,-2000.0,0.00015342,2]
[400423660,1767537041424,-2000.0,0.00015342,2]
[400423662,1767537041434,-2000.0,0.00015342,2]
[400423665,1767537041444,-688.49839244,0.00015361,2]
[400423666,1767537041454,-151.0,0.000154,2]
[400423669,1767537041464,-391.0513895,0.00015464,2]
[400423670,1767537041474,-2500.0,0.00015464,2]
[400423673,1767537041484,-2500.0,0.00015464,2]
[400423674,1767537041493,-284.0,0.00015507,3]
[400423676,1767537041503,-8527.73682895,0.00015806,5]
[400423678,1767537041512,-1500.0,0.00015864,2]
[400423681,1767537041522,-2500.0,0.0001589,2]
[400423683,1767537041533,-2500.0,0.0001589,2]
[400423684,1767537041542,-2500.0,0.0001589,2]
[400423687,1767537041552,-405.49855786,0.00015909,2]
[400423688,1767537041562,-572.57492143,0.00015997,2]
[400423690,1767537041572,-3000.0,0.00016012,2]
[400423692,1767537041582,-3000.0,0.00016012,2]
[400423694,1767537041594,-2000.0,0.00016144,7]
[400423696,1767537041603,-1800.0,0.00016412,2]
[400423698,1767537041613,-322.9,0.00016438,2]
[400423700,1767537041623,-500.0,0.00016438,2]
[400423702,1767537041632,-500.0,0.00016438,2]
[400423704,1767537041642,-500.0,0.00016438,2]
[400423706,1767537041652,-500.0,0.00016438,2]
[400423708,1767537041662,-500.0,0.00016438,2]
[400423710,1767537041671,-500.0,0.00016438,2]
[400423712,1767537041680,-500.0,0.00016438,2]
[400423714,1767537041690,-500.0,0.00016438,2]
[400423716,1767537041699,-500.0,0.00016438,2]
[400423718,1767537041708,-500.0,0.00016438,2]
[400423719,1767537041718,-269.20866725,0.00016438,2]
[400423722,1767537041728,-500.0,0.00016438,2]
[400423724,1767537041741,-500.0,0.00016438,2]
[400423726,1767537041750,-500.0,0.00016438,2]
[400423728,1767537041758,-500.0,0.00016438,2]
[400423730,1767537041768,-500.0,0.00016438,2]
[400423731,1767537041780,-3000.0,0.00016438,2]
[400423733,1767537041791,-3000.0,0.00016438,2]
[400423736,1767537041801,-3000.0,0.00016438,2]
[400423738,1767537041811,-200.0,0.00016473,2]
[400423739,1767537041821,-151.0,0.000165,2]
[400423741,1767537041831,-3500.0,0.0001656,2]
[400423744,1767537041840,-3500.0,0.0001656,2]
[400423745,1767537041850,-1000.0,0.00016583,2]
[400423748,1767537041860,-492.0,0.00016583,2]
[400423749,1767537041870,-322.9,0.00016936,2]
[400423751,1767537041879,-2000.0,0.00016959,7]
[400423753,1767537041890,-439.29349742,0.0001696,2]
[400423755,1767537041900,-3500.0,0.00016986,2]
[400423757,1767537041910,-3500.0,0.00016986,2]
[400423760,1767537041919,-3500.0,0.00016986,2]
[400423762,1767537041929,-13087.65298965,0.00017,2]
[400423785,1767537042133,-488.57536421,0.00017,2]
[400423813,1767537043062,-3e-08,0.00012073,2]
[400423819,1767537043474,-150.99999997,0.00012073,2]
[400423820,1767537043493,-808.44335458,0.00017,2]
[400423837,1767537047780,-151.0,0.00012073,2]
[400423838,1767537047790,-151.0,0.00012073,2]
[400423839,1767537047799,-6371.46453336,0.000129,2]
[400423840,1767537047808,-7741.03405232,0.00017,2]
[400423841,1767537063361,-560.0,9.995e-05,2]
[400423860,1767537158813,207.44695063,9.9e-05,2]
[400423867,1767537184609,8672.56304937,9.994e-05,2]
[400423868,1767537184687,10000.01,9.994e-05,2]
[400423870,1767537184752,10000.01,9.994e-05,2]
[400423872,1767537184817,10000.01,9.994e-05,2]
[400423874,1767537184885,10000.01,9.994e-05,2]
[400423877,1767537184954,10000.01,9.994e-05,2]
[400423878,1767537185017,10000.01,9.994e-05,2]
[400423879,1767537185081,10000.01,9.994e-05,2]
[400423880,1767537185139,10000.01,9.994e-05,2]
[400423881,1767537185199,10000.01,9.994e-05,2]
[400423882,1767537186130,-811.30341874,9.994e-05,2]
[400423893,1767537225317,-174.09,8.493e-05,2]
[400423894,1767537225581,-232.12,8.863e-05,2]
[400423895,1767537225716,-4637.85707155,9.994e-05,2]
[400423896,1767537226008,-290.15,9.232e-05,2]
[400423897,1767537226111,-9419.71,9.994e-05,2]
[400423898,1767537226258,-10000.01,9.994e-05,2]
[400423899,1767537226530,-348.18,9.601e-05,2]
[400423900,1767537226648,-9303.65,9.994e-05,2]
[400423901,1767537227130,-406.21,9.97e-05,2]
[400423902,1767537227349,-9187.59,9.994e-05,2]
[400423903,1767537227402,-10000.01,9.994e-05,2]
[400423904,1767537227514,-10000.01,9.994e-05,2]
[400423905,1767537227627,-10000.01,9.994e-05,2]
[400423906,1767537227940,-10000.01,9.994e-05,2]
[400423907,1767537233087,-10000.01,9.994e-05,2]
[400423908,1767537233444,-10000.01,9.994e-05,2]
[400423909,1767537242439,-300.0,9.993e-05,2]
[400423910,1767537242559,-9400.01,9.994e-05,2]
[400423911,1767537242946,-10000.01,9.994e-05,2]
[400423912,1767537243265,-10000.01,9.994e-05,2]
[400423913,1767537243635,-10000.01,9.994e-05,2]
[400423914,1767537243980,-10000.01,9.994e-05,2]
[400423915,1767537244801,-10000.01,9.994e-05,2]
[400423916,1767537245140,-10000.01,9.994e-05,2]
[400423917,1767537251265,-10000.01,9.994e-05,2]
[400423918,1767537251539,-10000.01,9.994e-05,2]
[400423929,1767537271291,-5000.0,9.894e-05,2]
[400423930,1767537271408,-0.01,9.994e-05,2]
[400423931,1767537271703,-10000.01,9.994e-05,2]
[400423934,1767537272838,-10000.01,9.994e-05,2]
[400423936,1767537274483,-10000.01,9.994e-05,2]
[400423938,1767537275722,-10000.01,9.994e-05,2]
[400423940,1767537277110,-10000.01,9.994e-05,2]
[400423942,1767537279485,-10000.01,9.994e-05,2]
[400423944,1767537280040,-10000.01,9.994e-05,2]
[400423948,1767537298682,288.85,7.818e-05,2]
[400423949,1767537306213,-374.93897584,8.173e-05,2]
[400423950,1767537308355,-58.34102416,8.173e-05,2]
[400423951,1767537308384,-164.4920854,8.529e-05,2]
[400423952,1767537311673,-255.51039031,8.529e-05,2]
[400423953,1767537314174,-157.69752429,8.529e-05,2]
[400423954,1767537314201,-78.14586261,8.884e-05,2]
[400423955,1767537317614,-273.78408127,8.884e-05,2]
[400423962,1767537319104,-370.20005612,8.884e-05,2]
[400423963,1767537319134,-111.01221535,9.239e-05,2]
[400423979,1767537320576,-522.5710955,9.239e-05,2]
[400423986,1767537328199,-232.96668915,9.239e-05,2]
[400423987,1767537329304,-359.30954112,9.417e-05,2]
[400423988,1767537329332,-100.30041109,9.595e-05,2]
[400423989,1767537332526,-300.0,9.595e-05,2]
[400423990,1767537334575,-263.17107362,9.595e-05,2]
[400423991,1767537336115,-300.0,9.595e-05,2]
[400423992,1767537345960,-47.50851529,9.595e-05,2]
[400423993,1767537346915,-264.53742163,9.795e-05,2]
[400423994,1767537349645,-598.66175607,9.795e-05,2]
[400423995,1767537351653,-166.68,9.795e-05,2]
[400423996,1767537353754,-333.64093476,9.795e-05,2]
[400423997,1767537358151,-485.05049706,9.795e-05,2]
[400423998,1767537359768,-270.99017907,9.795e-05,2]
[400423999,1767537363054,-557.58574659,9.795e-05,2]
[400424000,1767537365395,-2322.85346482,9.795e-05,2]
[400424001,1767537367042,-259.34177295,9.894e-05,2]
[400424002,1767537367068,-41.64542641,9.894e-05,2]
[400424003,1767537370685,-191.61728058,9.894e-05,2]
[400424004,1767537373407,-251.19992171,9.894e-05,2]
[400424005,1767537374805,-188.32954994,9.894e-05,2]
[400424006,1767537375768,154.63,6.68e-05,2]
[400424007,1767537376201,309.25,6.999e-05,2]
[400424008,1767537376738,463.88,7.317e-05,2]
[400424009,1767537376837,4426.54307036,9.795e-05,2]
[400424010,1767537376899,573.45692964,9.795e-05,2]
[400424011,1767537377156,618.51,7.635e-05,2]
[400424012,1767537377425,-215.18080952,9.894e-05,2]
[400424013,1767537377626,773.13,7.953e-05,2]
[400424014,1767537378056,927.76,8.271e-05,2]
[400424015,1767537378530,1082.39,8.589e-05,2]
[400424016,1767537378949,1237.01,8.907e-05,2]
[400424017,1767537379360,1391.64,9.225e-05,2]
[400424018,1767537379457,-250.4574325,9.894e-05,2]
[400424019,1767537379806,1546.27,9.544e-05,2]
[400424020,1767537381988,-235.62681107,9.894e-05,2]